[Event "Portuguese-ch U14-20 2022"]
[Site "Fatima"]
[Date "2022.04.11"]
[Round "2.8"]
[White "Quinta, Diogo Manuel Rodrigu"]
[Black "Maciel, Rafael"]
[Result "0-1"]
[ECO "C50"]
[WhiteElo "1127"]
[BlackElo "1665"]
[Annotator "NA RC"]
[PlyCount "98"]
[EventDate "2022.04.10"]
[EventType "swiss"]
[EventCountry "POR"]
[SourceTitle "playchess.com"]
[Source "ChessBase"]
[SourceQuality "1"]
[TimeControl "5400+30"]

1. e4 {[%emt 0:00:07]} e5 {[%emt 0:00:05]} 2. Nc3 {[%emt 0:00:26]} Nf6 {[%emt 0:01:50]} 3. Bc4 {[%emt 0:01:10]} Bc5 {[%emt 0:01:13]} 4. Nf3 {[%emt 0:01:37]} Nc6 {[%emt 0:03:43]} 5. d3 {[%emt 0:01:54]} h6 {[%emt 0:00:27]} 6. Bd2 {[%emt 0:02:17]} d6 {[%emt 0:00:43]} 7. h3 {[%emt 0:01:06]} Be6 {[%emt 0:00:19]} 8. b3 {[%emt 0:05:32]} a6 {[%emt 0:09:51]} 9. a4 {[%emt 0:03:20]} Bb4 {[%emt 0:04:11]} 10. O-O {[%emt 0:03:41]} Qd7 {[%emt 0:04:16]} 11. Qe2 {[%emt 0:02:53]} O-O {[%emt 0:05:35]} 12. Rfc1 {[%emt 0:06:21]} Nh5 {[%emt 0:05:51]} 13. Nxe5 {[%emt 0:07:14]} dxe5 {[%emt 0:04:18]} 14. Bxe6 {[%emt 0:02:51]} fxe6 {[%emt 0:04:42]} 15. Qxh5 {[%emt 0:01:53]} Qd4 {[%emt 0:01:30]} 16. Bxh6 {[%emt 0:10:07]} Qxf2+ {[%emt 0:00:50]} 17. Kh1 {[%emt 0:00:53]} Bxc3 {[%emt 0:00:09]} 18. Qg6 {[%emt 0:08:47]} Qf6 {[%emt 0:00:33]} 19. Qxf6 {[%emt 0:02:48]} Rxf6 {[%emt 0:00:09]} 20. Bg5 {[%emt 0:00:52]} Rf2 {[%emt 0:01:25]} 21. Rf1 {[%emt 0:00:45]} Bxa1 {[%emt 0:00:42]} 22. Rxf2 {[%emt 0:00:54]} Rf8 {[%emt 0:00:13]} 23. Re2 {[%emt 0:02:37]} Nd4 {[%emt 0:00:30]} 24. Rd2 {[%emt 0:01:20]} Bc3 {[%emt 0:00:29]} 25. Rd1 {[%emt 0:01:09]} Rf2 {[%emt 0:00:21]} 26. Be3 {[%emt 0:01:34]} Rxc2 {[%emt 0:00:31]} 27. Bxd4 {[%emt 0:00:58]} Bxd4 {[%emt 0:00:39]} 28. g4 {[%emt 0:00:43]} Be3 {[%emt 0:00:45]} 29. h4 {[%emt 0:02:18]} Rc1 {[%emt 0:00:05]} 30. Rxc1 {[%emt 0:00:17]} Bxc1 {[%emt 0:00:09]} 31. h5 {[%emt 0:00:27]} Bf4 {[%emt 0:01:56]} 32. Kg2 {[%emt 0:00:27]} g6 {[%emt 0:01:12]} 33. Kf1 {[%emt 0:01:36]} gxh5 {[%emt 0:00:26]} 34. gxh5 {[%emt 0:00:32]} Bd2 {[%emt 0:00:21]} 35. Ke2 {[%emt 0:00:34]} Bc3 {[%emt 0:00:24]} 36. h6 {[%emt 0:01:54]} Kh7 {[%emt 0:00:05]} 37. Kd1 {[%emt 0:00:19]} Kxh6 {[%emt 0:01:10]} 38. Ke2 {[%emt 0:00:58]} Kg5 {[%emt 0:00:19]} 39. Kd1 {[%emt 0:01:26]} Kf4 {[%emt 0:00:09]} 40. Ke2 {[%emt 0:03:13]} Bd4 {[%emt 0:01:03]} 41. Kd2 {[%emt 0:01:34]} Kf3 {[%emt 0:00:04]} 42. b4 {[%emt 0:03:16]} b6 {[%emt 0:00:25]} 43. b5 {[%emt 0:00:54]} a5 {[%emt 0:00:08]} 44. Kc2 {[%emt 0:02:06]} Ke3 {[%emt 0:00:02]} 45. Kb3 {[%emt 0:02:37]} Kxd3 {[%emt 0:00:05]} 46. Ka2 {[%emt 0:01:06]} Kxe4 {[%emt 0:00:04]} 47. Kb1 {[%emt 0:00:22]} Kd3 {[%emt 0:00:10]} 48. Kc1 {[%emt 0:00:28]} Bc3 {[%emt 0:00:08]} 49. Kb1 {[%emt 0:00:48]} e4 {[%emt 0:00:06]} 0-1

[Event "Portuguese-ch U14-20 2022"]
[Site "Fatima"]
[Date "2022.04.11"]
[Round "2.9"]
[White "Cunha, Alexandre Rodrigo Vi"]
[Black "Rodrigues, Guilherme Eufrasio"]
[Result "1-0"]
[ECO "B22"]
[WhiteElo "1603"]
[BlackElo "1171"]
[Annotator "NA RC"]
[PlyCount "91"]
[EventDate "2022.04.10"]
[EventType "swiss"]
[EventCountry "POR"]
[SourceTitle "playchess.com"]
[Source "ChessBase"]
[SourceQuality "1"]
[TimeControl "5400+30"]

1. e4 {[%emt 0:00:02]} c5 {[%emt 0:00:04]} 2. c3 {[%emt 0:01:54]} d5 {[%emt 0:01:44]} 3. e5 {[%emt 0:02:47]} Nc6 {[%emt 0:01:54]} 4. d4 {[%emt 0:00:40]} Bf5 {[%emt 0:01:28]} 5. f4 {[%emt 0:03:07]} cxd4 {[%emt 0:01:20]} 6. cxd4 {[%emt 0:00:13]} Be4 {[%emt 0:00:02]} 7. Nc3 {[%emt 0:01:36]} e6 {[%emt 0:00:04]} 8. a3 {[%emt 0:02:46]} Nh6 {[%emt 0:00:04]} 9. Be3 {[%emt 0:09:52]} Qb6 {[%emt 0:00:15]} 10. Qd2 {[%emt 0:00:50]} Be7 {[%emt 0:02:04]} 11. Bb5 {[%emt 0:07:21]} Nf5 {[%emt 0:01:27]} 12. Bxc6+ {[%emt 0:05:39]} bxc6 {[%emt 0:00:49]} 13. Nxe4 {[%emt 0:01:51]} dxe4 14. Bf2 {[%emt 0:01:50]} O-O {[%emt 0:00:20]} 15. g4 {[%emt 0:02:27]} Nh4 {[%emt 0:03:21]} 16. Be3 {[%emt 0:12:34]} Rab8 {[%emt 0:00:52]} 17. b4 {[%emt 0:03:06]} Qa6 {[%emt 0:18:40]} 18. Qb2 {[%emt 0:06:41]} Rfc8 {[%emt 0:10:33]} 19. Rc1 {[%emt 0:05:03]} Qb5 {[%emt 0:03:20]} 20. Kf2 {[%emt 0:08:02]} a5 {[%emt 0:00:32]} 21. Bd2 {[%emt 0:03:13]} axb4 {[%emt 0:06:21]} 22. axb4 {[%emt 0:05:31]} Bxb4 {[%emt 0:00:56]} 23. Ne2 {[%emt 0:01:03]} Bxd2 {[%emt 0:03:16]} 24. Qxd2 {[%emt 0:00:58]} Nf3 {[%emt 0:05:58]} 25. Qe3 {[%emt 0:01:44]} Qb3 {[%emt 0:09:23]} 26. Qxe4 {[%emt 0:01:56]} Nd2 {[%emt 0:00:37]} 27. Qe3 {[%emt 0:00:44]} Qxe3+ 28. Kxe3 {[%emt 0:00:18]} Nb3 {[%emt 0:22:45]} 29. Rc3 {[%emt 0:04:11]} c5 {[%emt 0:01:38]} 30. dxc5 {[%emt 0:00:49]} Rxc5 {[%emt 0:03:50]} 31. Rb1 {[%emt 0:02:06]} Rxc3+ {[%emt 0:00:05]} 32. Nxc3 {[%emt 0:00:12]} h6 {[%emt 0:00:53]} 33. Ne4 {[%emt 0:00:17]} Kh7 {[%emt 0:00:42]} 34. Nd2 {[%emt 0:00:32]} g5 {[%emt 0:00:58]} 35. Rxb3 {[%emt 0:00:41]} gxf4+ {[%emt 0:00:33]} 36. Kxf4 {[%emt 0:00:12]} Rd8 {[%emt 0:00:12]} 37. Ne4 {[%emt 0:00:23]} Rd1 {[%emt 0:00:34]} 38. Nd6 {[%emt 0:01:38]} Rf1+ {[%emt 0:00:24]} 39. Rf3 {[%emt 0:00:09]} Rxf3+ {[%emt 0:00:04]} 40. Kxf3 {[%emt 0:00:06]} Kg6 {[%emt 0:00:04]} 41. Kf4 {[%emt 0:00:32]} Kg7 {[%emt 0:00:10]} 42. h4 {[%emt 0:00:45]} Kg8 {[%emt 0:01:20]} 43. g5 {[%emt 0:00:37]} hxg5+ {[%emt 0:00:11]} 44. Kxg5 {[%emt 0:00:15]} Kg7 {[%emt 0:00:05]} 45. h5 {[%emt 0:00:12]} Kg8 {[%emt 0:00:47]} 46. Kf6 {[%emt 0:00:12]} 1-0

[Event "Portuguese-ch U14-20 2022"]
[Site "Fatima"]
[Date "2022.04.11"]
[Round "2.10"]
[White "Sismeiro, Miguel"]
[Black "Goncalves, Samuel Jesus P"]
[Result "1/2-1/2"]
[ECO "B12"]
[WhiteElo "2201"]
[BlackElo "1807"]
[Annotator "RC"]
[PlyCount "94"]
[EventDate "2022.04.10"]
[EventType "swiss"]
[EventCountry "POR"]
[SourceTitle "playchess.com"]
[Source "ChessBase"]
[SourceQuality "1"]
[TimeControl "5400+30"]

1. e4 {[%emt 0:10:14]} c6 {[%emt 0:00:07]} 2. d4 {[%emt 0:00:09]} d5 {[%emt 0:00:06]} 3. f3 {[%emt 0:00:04]} dxe4 {[%emt 0:00:07]} 4. fxe4 {[%emt 0:00:05]} e5 {[%emt 0:00:07]} 5. Nf3 {[%emt 0:00:05]} Bg4 {[%emt 0:00:05]} 6. c3 {[%emt 0:00:06]} Nd7 {[%emt 0:01:33]} 7. Bd3 {[%emt 0:00:26]} Ngf6 {[%emt 0:01:09]} 8. Nbd2 {[%emt 0:00:36]} Bd6 {[%emt 0:00:20]} 9. Nc4 {[%emt 0:00:14]} Qc7 {[%emt 0:03:05]} 10. h3 {[%emt 0:19:04]} Bh5 {[%emt 0:12:56]} 11. O-O {[%emt 0:02:20]} O-O {[%emt 0:00:53]} 12. Bg5 {[%emt 0:02:00]} b5 {[%emt 0:22:14]} 13. Ncd2 {[%emt 0:22:55]} c5 {[%emt 0:13:21]} 14. d5 {[%emt 0:07:19]} c4 {[%emt 0:00:12]} 15. Bc2 {[%emt 0:00:02]} h6 {[%emt 0:08:05]} 16. Bxf6 {[%emt 0:04:25]} Nxf6 {[%emt 0:00:29]} 17. g4 {[%emt 0:01:43]} Qc5+ {[%emt 0:05:55]} 18. Kh1 {[%emt 0:00:26]} Bg6 {[%emt 0:01:00]} 19. Nh4 {[%emt 0:03:43]} Qe3 {[%emt 0:01:44]} 20. Rf3 {[%emt 0:00:49]} Qg5 {[%emt 0:01:09]} 21. Nf5 {[%emt 0:00:08]} Bxf5 {[%emt 0:00:35]} 22. Rxf5 {[%emt 0:00:11]} Qh4 {[%emt 0:12:44]} 23. Kg2 {[%emt 0:00:21]} g6 {[%emt 0:01:15]} 24. Rf1 {[%emt 0:06:02]} Nh7 {[%emt 0:01:04]} 25. Nf3 {[%emt 0:00:23]} Qe7 {[%emt 0:00:05]} 26. Qd2 {[%emt 0:01:00]} Kg7 {[%emt 0:01:27]} 27. b3 {[%emt 0:02:30]} Ng5 {[%emt 0:00:59]} 28. Nxg5 {[%emt 0:00:06]} Qxg5 {[%emt 0:00:05]} 29. Qxg5 {[%emt 0:00:11]} hxg5 {[%emt 0:00:06]} 30. bxc4 {[%emt 0:00:04]} Rfc8 {[%emt 0:01:14]} 31. Bb3 {[%emt 0:03:22]} a5 {[%emt 0:00:31]} 32. a4 {[%emt 0:00:34]} bxc4 {[%emt 0:00:08]} 33. Bc2 {[%emt 0:00:04]} Rab8 {[%emt 0:00:46]} 34. Rfb1 {[%emt 0:00:05]} Rxb1 {[%emt 0:03:04]} 35. Rxb1 {[%emt 0:00:10]} Rb8 {[%emt 0:00:06]} 36. Rxb8 {[%emt 0:00:18]} Bxb8 {[%emt 0:00:06]} 37. Bb1 {[%emt 0:00:09]} Bd6 {[%emt 0:00:24]} 38. Kf3 {[%emt 0:00:09]} Ba3 {[%emt 0:01:35]} 39. Ke2 {[%emt 0:00:33]} Bc5 {[%emt 0:01:25]} 40. Ba2 {[%emt 0:00:05]} f5 {[%emt 0:00:14]} 41. Bb1 {[%emt 0:02:06]} f4 {[%emt 0:00:43]} 42. Ba2 {[%emt 0:00:03]} Kf6 {[%emt 0:00:47]} 43. Bxc4 {[%emt 0:00:05]} Ke7 {[%emt 0:00:17]} 44. Bb5 {[%emt 0:00:07]} Bb6 {[%emt 0:00:33]} 45. Bc6 {[%emt 0:00:20]} Bc5 {[%emt 0:00:09]} 46. Bb5 {[%emt 0:00:05]} Bb6 {[%emt 0:00:05]} 47. Bc6 {[%emt 0:00:04]} Bc5 {[%emt 0:00:08]} 1/2-1/2

[Event "Portuguese-ch U14-20 2022"]
[Site "Fatima"]
[Date "2022.04.11"]
[Round "2.11"]
[White "Abdurramane, Danial Germano"]
[Black "Simoes, Miguel Patricio"]
[Result "1-0"]
[ECO "A46"]
[WhiteElo "1772"]
[BlackElo "2001"]
[Annotator "RC"]
[PlyCount "59"]
[EventDate "2022.04.10"]
[EventType "swiss"]
[EventCountry "POR"]
[SourceTitle "playchess.com"]
[Source "ChessBase"]
[SourceQuality "1"]
[TimeControl "5400+30"]

1. d4 {[%emt 0:00:04]} Nf6 {[%emt 0:01:16]} 2. Nf3 {[%emt 0:00:06]} e6 3. e3 {[%emt 0:00:37]} b6 {[%emt 0:05:15]} 4. Bd3 {[%emt 0:01:35]} Bb7 {[%emt 0:01:21]} 5. b3 {[%emt 0:02:17]} Be7 {[%emt 0:04:41]} 6. Bb2 {[%emt 0:00:26]} O-O {[%emt 0:01:44]} 7. Nbd2 {[%emt 0:02:00]} c5 {[%emt 0:04:29]} 8. c4 {[%emt 0:04:25]} d6 {[%emt 0:09:32]} 9. O-O {[%emt 0:02:25]} Nbd7 {[%emt 0:02:18]} 10. Qe2 {[%emt 0:01:47]} Qc7 {[%emt 0:01:40]} 11. Ng5 {[%emt 0:08:23]} h6 {[%emt 0:09:05]} 12. Nge4 {[%emt 0:02:57]} Nxe4 {[%emt 0:07:25]} 13. Nxe4 {[%emt 0:04:38]} Qc6 {[%emt 0:02:03]} 14. f4 {[%emt 0:01:42]} f5 {[%emt 0:06:25]} 15. Ng3 {[%emt 0:07:38]} Nf6 {[%emt 0:08:22]} 16. d5 {[%emt 0:10:31]} exd5 {[%emt 0:00:30]} 17. Nxf5 {[%emt 0:03:33]} Qd7 {[%emt 0:02:32]} 18. cxd5 {[%emt 0:03:48]} Bxd5 {[%emt 0:02:51]} 19. Qc2 {[%emt 0:15:17]} Qe6 {[%emt 0:03:42]} 20. Rae1 {[%emt 0:00:48]} Bb7 {[%emt 0:04:07]} 21. e4 {[%emt 0:00:43]} Qd7 {[%emt 0:06:47]} 22. e5 {[%emt 0:04:40]} Nh5 {[%emt 0:00:58]} 23. Nxh6+ {[%emt 0:04:46]} Kh8 {[%emt 0:00:46]} 24. e6 {[%emt 0:00:35]} Qc6 {[%emt 0:01:30]} 25. Nf7+ {[%emt 0:00:30]} Rxf7 {[%emt 0:00:00]} 26. exf7 {[%emt 0:00:10]} Bh4 {[%emt 0:01:07]} 27. Bg6 {[%emt 0:02:32]} Nf6 {[%emt 0:00:57]} 28. Bxf6 {[%emt 0:00:30]} gxf6 {[%emt 0:00:13]} 29. Re8+ {[%emt 0:00:19]} Kg7 {[%emt 0:01:23]} 30. f8=Q# {[%emt 0:00:10]} 1-0

[Event "Portuguese-ch U14-20 2022"]
[Site "Fatima"]
[Date "2022.04.11"]
[Round "2.12"]
[White "Pipiras, Filipa Fortuna"]
[Black "Fonseca, Pedro Miguel Ramos"]
[Result "1-0"]
[ECO "A05"]
[WhiteElo "2000"]
[BlackElo "1788"]
[Annotator "RC"]
[PlyCount "51"]
[EventDate "2022.04.10"]
[EventType "swiss"]
[EventCountry "POR"]
[SourceTitle "playchess.com"]
[Source "ChessBase"]
[SourceQuality "1"]
[TimeControl "5400+30"]

1. Nf3 Nf6 2. e3 e6 3. b3 b6 4. Bb2 Bb7 5. d4 d5 6. Bd3 Bd6 7. O-O O-O 8. c4 dxc4 9. bxc4 c5 10. Nbd2 cxd4 11. exd4 Nbd7 12. a3 Re8 13. Re1 Qc7 14. h3 Rad8 15. Rc1 Bf4 16. Be2 Nc5 17. Rc2 Nfe4 18. dxc5 Nxf2 19. Kxf2 Bg3+ 20. Kg1 Qxc5+ 21. Kh1 Qe3 22. Rf1 Be4 23. Rc3 Qh6 24. Qa4 Bf5 25. Bc1 Bxh3 26. Ne4 1-0

[Event "Portuguese-ch U14-20 2022"]
[Site "Fatima"]
[Date "2022.04.11"]
[Round "2.13"]
[White "Sousa, Ricardo Miguel Morai"]
[Black "Gomes, Estevao Manuel"]
[Result "1/2-1/2"]
[ECO "A48"]
[WhiteElo "2077"]
[BlackElo "2047"]
[Annotator "RC"]
[PlyCount "67"]
[EventDate "2022.04.10"]
[EventType "swiss"]
[EventCountry "POR"]
[SourceTitle "playchess.com"]
[Source "ChessBase"]
[SourceQuality "1"]
[TimeControl "5400+30"]

1. d4 {[%emt 0:00:15]} Nf6 {[%emt 0:02:10]} 2. Nf3 {[%emt 0:00:08]} g6 {[%emt 0:00:07]} 3. Bf4 {[%emt 0:00:05]} Bg7 {[%emt 0:00:06]} 4. e3 {[%emt 0:00:07]} O-O {[%emt 0:00:10]} 5. Be2 {[%emt 0:00:03]} d6 {[%emt 0:00:05]} 6. h3 {[%emt 0:00:04]} Nbd7 {[%emt 0:00:19]} 7. O-O {[%emt 0:00:15]} b6 {[%emt 0:00:03]} 8. a4 {[%emt 0:01:14]} Bb7 {[%emt 0:09:32]} 9. a5 {[%emt 0:03:15]} bxa5 {[%emt 0:00:19]} 10. Rxa5 {[%emt 0:00:09]} c5 {[%emt 0:00:06]} 11. Ra3 {[%emt 0:00:07]} a5 {[%emt 0:02:36]} 12. Nbd2 {[%emt 0:05:07]} Nd5 {[%emt 0:08:12]} 13. Bh2 {[%emt 0:01:16]} Ba6 {[%emt 0:06:24]} 14. c3 {[%emt 0:08:38]} Qc7 {[%emt 0:14:10]} 15. Bxa6 {[%emt 0:07:06]} Rxa6 {[%emt 0:00:06]} 16. Qa1 {[%emt 0:03:55]} Rfa8 {[%emt 0:11:30]} 17. Qa2 {[%emt 0:10:40]} N5b6 {[%emt 0:03:01]} 18. Ng5 {[%emt 0:10:32]} c4 {[%emt 0:00:17]} 19. b3 {[%emt 0:11:01]} h6 {[%emt 0:01:53]} 20. Ngf3 {[%emt 0:03:13]} cxb3 {[%emt 0:01:05]} 21. Qxb3 {[%emt 0:01:41]} a4 {[%emt 0:01:03]} 22. Qa2 {[%emt 0:01:07]} Ra5 {[%emt 0:06:14]} 23. c4 {[%emt 0:04:36]} Qc6 {[%emt 0:00:58]} 24. Rc1 {[%emt 0:04:55]} Rc8 {[%emt 0:01:39]} 25. Qc2 {[%emt 0:02:12]} e5 {[%emt 0:07:39]} 26. Qc3 {[%emt 0:01:34]} Qa8 {[%emt 0:00:41]} 27. Qb4 {[%emt 0:00:59]} Ra7 {[%emt 0:02:22]} 28. Ra2 {[%emt 0:03:58]} Rc6 {[%emt 0:00:28]} 29. Nb1 {[%emt 0:05:12]} Rac7 {[%emt 0:03:31]} 30. Na3 {[%emt 0:00:38]} Qc8 {[%emt 0:05:36]} 31. Rac2 {[%emt 0:00:23]} Rb7 {[%emt 0:02:50]} 32. Qd2 {[%emt 0:05:05]} e4 {[%emt 0:06:49]} 33. Ne1 {[%emt 0:00:16]} Bf8 {[%emt 0:00:06]} 34. Rc3 {[%emt 0:06:04]} 1/2-1/2

[Event "Portuguese-ch U14-20 2022"]
[Site "Fatima"]
[Date "2022.04.11"]
[Round "2.14"]
[White "Ribeiro, Rodrigo"]
[Black "Gama, Joao Tiago"]
[Result "1/2-1/2"]
[ECO "D58"]
[WhiteElo "1866"]
[BlackElo "1637"]
[Annotator "NA RC"]
[PlyCount "198"]
[EventDate "2022.04.10"]
[EventType "swiss"]
[EventCountry "POR"]
[SourceTitle "playchess.com"]
[Source "ChessBase"]
[SourceQuality "1"]
[TimeControl "5400+30"]

{[%evp 9,198,16,18,8,10,18,6,32767,32767,10,51,33,32767,20,14,13,16,6,3,0,48,56,135,121,119,68,79,49,58,57,77,54,49,34,43,31,32767,32767,32767,32767,32767,32767,32767,32767,32767,32767,32767,32767,32767,141,32767,32767,158,144,170,186,250,252,264,154,156,32767,162,183,209,176,32767,32767,32767,32767,214,72,83,38,48,43,46,32767,118,97,32767,32767,32767,32767,32767,32767,32767,32767,32767,32767,32767,32767,32767,32767,32767,29,32767,32767,32767,32767,32767,32767,32767,32767,0,32767,32767,32767,32767,32767,32767,32767,32767,32767,32767,8,32767,8,19,32767,59,32767,123,8,32767,32767,32767,8,8,8,8,32767,32767,0,8,8,8,8,8,0,8,32767,32767,32767,32767,32767,32767,32767,32767,32767,0,0,8,32767,32767,32767,8,-28000,8,8,8,8,8,-28000,-28000,-28000,-28000,8,8,8,8,8,-28000,8,-28000,0,8,-28000,-28000,8,8,8,-28000,8,8,-28000,8,-28000,32767,8,8]} 1. d4 {[%emt 0:00:01]} d5 {[%emt 0:00:35]} 2. c4 {[%emt 0:00:05]} e6 {[%emt 0:00:03]} 3. Nc3 {[%emt 0:00:03]} Nf6 {[%emt 0:00:04]} 4. Bg5 {[%emt 0:00:06]} Be7 {[%emt 0:00:05]} 5. e3 {[%emt 0:00:14]} h6 {[%emt 0:00:10]} 6. Bh4 {[%emt 0:00:10]} O-O {[%emt 0:00:06]} 7. Nf3 {[%emt 0:00:20]} b6 {[%emt 0:00:04]} 8. cxd5 {[%emt 0:01:39] 8.Be2 is more fashionable.} exd5 {[%emt 0:00:06]} 9. Be2 {[%emt 0:00:54]} Be6 {[%emt 0:01:58]} 10. O-O {[%emt 0:01:18]} Nbd7 {[%emt 0:01:37]} 11. Ba6 {[%emt 0:05:29]} (11. Rc1 $14 {should be considered.}) 11... Ne4 $1 {[%emt 0:04:38]} 12. Bxe7 {[%emt 0:03:40]} Qxe7 {[%emt 0:00:43]} 13. Rc1 {[%emt 0:00:45]} c5 {[%emt 0:01:24] [#]} 14. b3 $146 {[%emt 0:07:22]} ({Predecessor:} 14. dxc5 Ndxc5 15. Be2 Qb7 16. Nd4 Rac8 17. f3 Nf6 18. b4 Ncd7 19. Qb3 Ne5 20. Ncb5 Rxc1 21. Rxc1 {1-0 (78) Skacelik,P (2162)-Zigo,V (2260) Czech Republic 2020}) 14... cxd4 {[%emt 0:05:08]} (14... Nxc3 $11 15. Rxc3 Nf6) 15. Nxd4 {[%emt 0:08:48]} Qa3 {[%emt 0:00:30]} ({Better is} 15... Ndc5 $14 16. Qe2 Rae8) 16. Nxe4 {[%emt 0:31:05]} Qxa6 {[%emt 0:00:15] [#]} 17. Nc3 {[%emt 0:01:46]} (17. Rc7 $1 $16) 17... Rac8 {[%emt 0:04:14]} 18. Qe2 {[%emt 0:18:42]} Qxe2 {[%emt 0:03:06]} 19. Ncxe2 {[%emt 0:00:20]} Nc5 {[%emt 0:00:13]} 20. Rc3 {[%emt 0:04:27]} (20. Rfd1 $16) 20... Ne4 {[%emt 0:04:10]} 21. Rxc8 {[%emt 0:00:08]} Rxc8 {[%emt 0:00:03]} 22. Rc1 {[%emt 0:00:03]} Rxc1+ {[%emt 0:00:22]} 23. Nxc1 {[%emt 0:00:05]} Nc3 {[%emt 0:00:30]} 24. Kf1 {[%emt 0:01:04]} b5 {[%emt 0:02:48]} 25. Ke1 {[%emt 0:00:42]} b4 {[%emt 0:00:01]} 26. Nc6 {[%emt 0:00:23]} a5 {[%emt 0:01:22]} 27. Nxa5 {[%emt 0:00:11]} Bd7 {[%emt 0:00:04]} 28. Nb7 {[%emt 0:00:52]} Kf8 {[%emt 0:01:19]} 29. Nc5 {[%emt 0:00:45]} Bb5 {[%emt 0:00:02]} 30. f3 {[%emt 0:03:30]} Ke7 {[%emt 0:00:23] [#]} 31. Kd2 $1 {[%emt 0:00:37]} Bf1 {[%emt 0:01:39]} 32. N5d3 {[%emt 0:02:43]} Bxg2 {[%emt 0:02:26]} 33. Nxb4 {[%emt 0:00:05]} Nb5 {[%emt 0:00:46]} 34. Nxd5+ {[%emt 0:00:53]} ({White should play} 34. a4 $18 Nc7 35. Ke2) 34... Kd6 {[%emt 0:00:01]} 35. Nf4 {[%emt 0:00:12]} Bxf3 {[%emt 0:00:16]} 36. a4 {[%emt 0:00:05]} Na7 {[%emt 0:00:39]} (36... Nc7 $16 {might work better.} 37. b4 f5) 37. b4 {[%emt 0:00:25]} Bc6 {[%emt 0:00:25]} 38. a5 {[%emt 0:01:01]} Bb5 {[%emt 0:00:13]} 39. Nb3 {[%emt 0:01:56]} g5 {[#]} 40. Ne2 {[%emt 0:02:29]} (40. Nh5 $1 $18) 40... Kd5 $1 {[%emt 0:04:19]} 41. Nc5 {[%emt 0:04:16]} (41. Ned4 $16 Kc4 42. Nxb5 Nxb5 43. Nd4) 41... Kc4 {[%emt 0:00:23]} 42. Nd3 {[%emt 0:00:11]} Nc6 {[%emt 0:00:53]} 43. Nc3 {[%emt 0:02:24]} Ba6 {[%emt 0:13:59]} ({Black should try} 43... f5) 44. Ne4 {[%emt 0:00:29]} Kd5 {[%emt 0:01:32]} 45. Nf6+ Kd6 46. Ng4 {[%emt 0:01:57]} h5 {[%emt 0:00:40]} 47. Ngf2 {[%emt 0:00:27]} Kd5 {[%emt 0:04:20]} 48. Kc3 {[%emt 0:00:14]} f5 {[%emt 0:01:10]} 49. Nc5 {[%emt 0:00:09]} Bb5 {[%emt 0:00:05]} 50. e4+ {[%emt 0:00:06]} Ke5 {[%emt 0:03:16]} 51. exf5 {[%emt 0:00:41]} Kxf5 {[%emt 0:00:14]} 52. Nce4 $2 {[%emt 0:01:28]} ({White has to play} 52. Nfe4 $18 Na7 53. Nd6+ Ke5 54. Nxb5 Nxb5+ 55. Kc4 Nd6+ 56. Kd3) 52... Kf4 {[%emt 0:01:23]} 53. Nd6 {[%emt 0:00:35]} Bf1 {[%emt 0:00:13]} 54. Nc4 {[%emt 0:00:32]} g4 {[%emt 0:00:38]} 55. Nd2 {[%emt 0:00:29]} Bb5 {[%emt 0:01:04]} 56. Nfe4 {[%emt 0:00:30]} h4 {[%emt 0:00:48]} 57. Nf6 {[%emt 0:00:25]} g3 {[%emt 0:00:54]} 58. Nh5+ {[%emt 0:00:09]} Kg4 {[%emt 0:00:48]} 59. Nxg3 {[%emt 0:00:36]} hxg3 {[%emt 0:00:07]} 60. hxg3 {[%emt 0:00:18]} Kxg3 {[%emt 0:00:07]} 61. Nb3 {[%emt 0:00:18]} Na7 {[%emt 0:05:18]} 62. Kd4 {[%emt 0:00:41]} Kf4 {[%emt 0:01:04]} 63. Kc5 {[%emt 0:00:10]} Bf1 {[%emt 0:00:59]} 64. Nd4 {[%emt 0:00:30]} Ke4 {[%emt 0:01:01]} ({Black should try} 64... Ke5 $11) 65. b5 {[%emt 0:01:10]} Nc8 {[%emt 0:00:39] [#]} (65... Nxb5 $2 66. Nxb5 Bg2 67. Kb6 $18) 66. Nc6 {[%emt 0:00:41]} ({White should play} 66. b6 $1 $16 {[%cal Rb6b7]} Nxb6 67. axb6) 66... Bxb5 {[%emt 0:02:00]} 67. Kxb5 {[%emt 0:00:05]} Kd5 {[%emt 0:00:04]} 68. Nb4+ {[%emt 0:00:59]} Kd6 $1 {[%emt 0:00:11]} 69. Ka6 {[%emt 0:00:08]} Kc7 {[%emt 0:00:21]} 70. Nd5+ {[%emt 0:00:10]} Kb8 {[%emt 0:00:01]} 71. Nb4 {[%emt 0:01:08]} Na7 {[%emt 0:00:28]} 72. Kb6 {[%emt 0:00:24]} Nc8+ {[%emt 0:00:17]} 73. Kc6 {[%emt 0:00:40]} Na7+ {[%emt 0:00:27]} 74. Kb6 {[%emt 0:00:13]} Nc8+ {[%emt 0:00:02]} 75. Kc5 {[%emt 0:00:35]} Na7 {[%emt 0:01:10]} 76. a6 {[%emt 0:00:42]} Nc8 {[%emt 0:01:11]} 77. Nc6+ {[%emt 0:00:32]} Ka8 {[%emt 0:00:01]} 78. Kd4 {[%emt 0:00:30]} Na7 {[%emt 0:00:23]} 79. Nb4 {[%emt 0:00:16]} Nc8 {[%emt 0:00:21]} 80. Kc5 {[%emt 0:00:14]} Kb8 {[%emt 0:00:41]} 81. Kc6 {[%emt 0:00:25]} Na7+ {[%emt 0:00:07]} 82. Kd7 {[%emt 0:00:06]} Ka8 {[%emt 0:01:03]} 83. Kc7 {[%emt 0:01:01]} Nb5+ {[%emt 0:00:08]} 84. Kb6 {[%emt 0:00:07]} Na7 {[%emt 0:00:22]} 85. Nd5 {[%emt 0:01:13]} Kb8 {[%emt 0:00:11]} 86. Ne7 {[%emt 0:00:36]} Ka8 {[%emt 0:00:34]} 87. Kc7 {[%emt 0:00:29]} Nb5+ {[%emt 0:00:02]} 88. Kc6 {[%emt 0:00:19]} Na7+ {[%emt 0:00:01]} 89. Kb6 {[%emt 0:00:20]} Kb8 {[%emt 0:00:11]} 90. Nd5 {[%emt 0:00:26]} Nc8+ {[%emt 0:00:16]} 91. Kc5 {[%emt 0:00:37]} Ka7 {[%emt 0:00:19]} 92. Nb4 {[%emt 0:00:09]} Nb6 {[%emt 0:01:05]} 93. Kb5 {[%emt 0:00:07]} Nc8 {[%emt 0:00:16]} 94. Nc6+ {[%emt 0:00:28]} Ka8 {[%emt 0:00:05]} 95. Kc5 {[%emt 0:00:21]} Na7 {[%emt 0:00:11]} 96. Ne7 {[%emt 0:00:10]} Kb8 {[%emt 0:00:33]} 97. Kb6 {[%emt 0:00:12]} Ka8 {[%emt 0:00:09]} 98. Nd5 {[%emt 0:01:16]} Nc8+ {[%emt 0:00:18]} 99. Kc7 {[%emt 0:00:10]} Ka7 {[%emt 0:00:05]} 1/2-1/2